bitfinex-derivatives/quotes_SOLF0:USTF0_20250706
["timestamp","ask_amount","ask_price","bid_price","bid_amount"]
[1751838803141,210.2,152.22,152.2,6.5682]
[1751838803338,210.2,152.22,152.14,12.50219215]
[1751838803837,210.14,152.22,152.21,6.5682]
[1751838804233,55.92278538,152.23,152.21,6.5682]
[1751838804433,210.12,152.22,152.21,6.5682]
[1751838804640,52.54,152.23,152.21,6.5682]
[1751838805039,210.08,152.22,152.21,6.5682]
[1751838805534,52.54,152.23,152.2,6.5685]
[1751838805837,210.08,152.22,152.2,6.5685]
[1751838806239,210.08,152.22,152.15,3.38278538]
[1751838806635,6.5685,152.21,152.17,6.5699]
[1751838807041,6.5685,152.21,152.15,3.38278538]
[1751838807243,6.5685,152.21,152.13,6.7786]
[1751838807438,6.5685,152.21,152.14,3.38278538]
[1751838807737,3.38278538,152.19,152.13,6.5714]
[1751838807941,3.38278538,152.17,152.09,12.50219215]
[1751838808134,209.94,152.16,152.09,12.50219215]
[1751838808338,216.5104,152.16,152.09,12.50219215]
[1751838808541,216.5104,152.16,152.12,6.5717]
[1751838809843,216.5104,152.16,152.13,6.5715]
[1751838810048,209.94,152.16,152.13,6.5715]
[1751838812755,209.94,152.16,152.09,12.50219215]
[1751838813555,209.94,152.16,152.13,6.5713]
[1751838813751,209.74,152.15,152.13,6.5713]
[1751838814255,209.74,152.15,152.14,6.5712]
[1751838815956,62.47228538,152.18,152.14,6.5712]
[1751838816152,209.66,152.17,152.15,6.5706]
[1751838816649,209.66,152.17,152.1,12.50219215]
[1751838816848,52.52,152.18,152.12,3.38278538]
[1751838817056,3.38278538,152.22,152.14,3.38278538]
[1751838817451,262.14,152.21,152.18,6.5692]
[1751838817656,52.52,152.21,152.14,3.38278538]
[1751838818159,262.1,152.21,152.2,6.5686]
[1751838818856,52.52,152.21,152.2,6.5686]
[1751838819158,54.8733,152.24,152.21,6.5682]
[1751838819359,209.54,152.23,152.18,3.38278538]
[1751838820059,55.88278538,152.25,152.22,6.5675]
[1751838820255,209.52,152.24,152.18,3.38278538]
[1751838820459,52.5,152.25,152.18,3.38278538]
[1751838820661,262.0,152.25,152.23,6.5671]
[1751838821361,262.0,152.25,152.2,3.38278538]
[1751838822862,262.0,152.25,152.22,6.5674]
[1751838823362,262.0,152.25,152.23,6.5673]
[1751838827162,262.0,152.25,152.21,6.5679]
[1751838827163,271.94958538,152.25,152.21,6.5679]
[1751838833172,268.5668,152.25,152.22,6.5677]
[1751838833572,209.0,152.24,152.22,6.5677]
[1751838840579,209.0,152.24,152.21,6.568]
[1751838841278,209.0,152.24,152.19,9.95168538]
[1751838843883,215.5669,152.24,152.19,9.95168538]
[1751838844474,215.5669,152.24,152.19,19.03174671]
[1751838844977,215.5669,152.24,152.2,6.5686]
[1751838845276,215.5669,152.24,152.19,12.46284671]
[1751838845476,215.5669,152.24,152.19,19.03164671]
[1751838845875,6.5674,152.23,152.19,15.64886133]
[1751838846275,208.48,152.23,152.19,15.64886133]
[1751838846682,208.48,152.23,152.2,6.5686]
[1751838847083,208.48,152.23,152.18,12.46284671]
[1751838847579,208.48,152.23,152.19,6.5689]
[1751838848580,208.48,152.23,152.2,6.5685]
[1751838848879,208.48,152.23,152.18,12.46284671]
[1751838849281,208.48,152.23,152.19,6.5689]
[1751838852379,208.48,152.23,152.19,9.95168538]
[1751838853084,208.48,152.23,152.2,6.5685]
[1751838853780,208.48,152.23,152.19,19.03174671]
[1751838854486,208.48,152.23,152.19,9.95168538]
[1751838855482,208.48,152.23,152.19,19.03174671]
[1751838856783,208.48,152.23,152.2,9.08006133]
[1751838857585,208.48,152.23,152.2,15.64866133]
[1751838858286,208.48,152.23,152.21,9.08006133]
[1751838858586,52.5,152.25,152.21,9.08006133]
[1751838858587,267.1667,152.25,152.21,9.08006133]
[1751838858786,260.6,152.25,152.21,9.08006133]
[1751838859082,267.1667,152.25,152.21,9.08006133]
[1751838859586,6.5672,152.24,152.2,9.08006133]
[1751838860185,6.5672,152.24,152.21,9.08006133]
[1751838860487,6.5675,152.23,152.21,9.08006133]
[1751838861281,6.5675,152.23,152.22,9.08006133]
[1751838863187,3.38278538,152.24,152.18,9.08006133]
[1751838863388,4.5683,152.22,152.18,9.08006133]
[1751838863683,6.5691,152.19,152.18,9.08006133]
[1751838863886,51.7,152.2,152.17,9.08006133]
[1751838864790,6.5698,152.18,152.16,9.08006133]
[1751838864991,214.4098,152.18,152.16,9.08006133]
[1751838865481,6.5699,152.17,152.16,9.08006133]
[1751838867889,6.5699,152.17,152.15,9.08006133]
[1751838870397,6.5699,152.17,152.14,9.08006133]
[1751838870595,207.84,152.18,152.14,9.08006133]
[1751838870596,6.5704,152.16,152.14,9.08006133]
[1751838872191,6.5708,152.15,152.13,12.46284671]
[1751838872396,6.5708,152.15,152.13,9.08006133]
[1751838872895,6.5708,152.15,152.12,9.08006133]
[1751838873098,207.6,152.14,152.11,3.38278538]
[1751838873300,207.6,152.13,152.11,12.46284671]
[1751838873496,207.58,152.14,152.11,12.46284671]
[1751838874196,207.58,152.14,152.11,3.38278538]
[1751838874595,6.5717,152.13,152.11,3.38278538]
[1751838875599,6.5717,152.13,152.1,3.38278538]
[1751838877394,6.5717,152.13,152.09,9.08006133]
[1751838877596,6.5717,152.13,152.09,3.38278538]
[1751838881902,6.5721,152.12,152.09,3.38278538]
[1751838882102,207.58,152.14,152.09,3.38278538]
[1751838882499,6.5723,152.12,152.09,3.38278538]
[1751838884408,207.58,152.14,152.09,3.38278538]
[1751838884704,207.58,152.14,152.09,9.95618538]
[1751838885703,207.58,152.14,152.09,19.03624671]
[1751838887407,207.58,152.14,152.1,6.5726]
[1751838887700,207.58,152.14,152.07,9.08006133]
[1751838887899,207.58,152.14,152.09,6.5731]
[1751838890503,207.58,152.14,152.1,6.5728]
[1751838891510,207.58,152.14,152.11,6.5725]
[1751838891810,56.2543,152.15,152.1,3.38278538]
[1751838892008,258.7,152.15,152.1,3.38278538]
[1751838892410,258.7,152.15,152.12,6.5717]
[1751838892612,258.7,152.15,152.1,3.38278538]
[1751838892813,258.7,152.15,152.13,2.16660273]
[1751838893516,258.7,152.15,152.13,8.73810273]
[1751838894913,258.7,152.15,152.14,6.5712]
[1751838896117,258.58,152.15,152.14,6.5712]
[1751838896310,258.56,152.15,152.14,6.5712]
[1751838897512,51.7,152.15,152.14,6.5712]
[1751838897713,258.54,152.15,152.14,6.5712]
[1751838899113,53.7025,152.19,152.18,6.5695]
[1751838899313,258.06,152.19,152.18,6.5695]
[1751838899517,51.32,152.22,152.16,3.3855508]
[1751838899821,206.72,152.21,152.2,6.5686]
[1751838900520,206.68,152.21,152.2,6.5686]
[1751838901520,258.0,152.22,152.2,6.5686]
[1751838901911,258.0,152.22,152.16,3.3855508]
[1751838902116,258.0,152.22,152.16,12.46561213]
[1751838902420,51.32,152.22,152.21,6.5682]
[1751838902612,257.94,152.22,152.21,6.5682]
[1751838903313,51.32,152.22,152.21,6.5682]
[1751838903518,257.9,152.22,152.21,6.5682]
[1751838904810,63.5571508,152.26,152.22,6.5677]
[1751838905016,206.52,152.25,152.19,9.08006133]
[1751838905214,56.9909508,152.26,152.19,9.08006133]
[1751838905417,206.5,152.25,152.23,6.5672]
[1751838906811,206.46,152.24,152.23,6.5672]
[1751838907016,206.42,152.24,152.23,6.5672]
[1751838907217,2.3054,152.26,152.23,6.5672]
[1751838907618,206.4,152.25,152.23,6.5672]
[1751838907819,206.4,152.25,152.24,6.5669]
[1751838908918,206.4,152.25,152.23,6.5672]
[1751838909319,6.5669,152.24,152.17,12.46561213]
[1751838909517,206.32,152.23,152.17,3.3855508]
[1751838910120,206.32,152.23,152.2,6.5684]
[1751838910423,212.8873,152.23,152.2,6.5684]
[1751838911625,6.5678,152.22,152.19,6.5689]
[1751838911922,51.3,152.21,152.19,6.5689]
[1751838912120,206.22,152.2,152.19,6.5689]
[1751838912728,206.22,152.2,152.14,9.08006133]
[1751838912926,206.22,152.2,152.13,3.3855508]
[1751838913623,212.7889,152.2,152.16,6.5702]
[1751838914028,6.5691,152.19,152.16,6.5702]
[1751838917729,206.22,152.2,152.12,9.08006133]
[1751838917929,208.5588,152.2,152.12,9.08006133]
[1751838918133,3.3855508,152.19,152.12,9.08006133]
[1751838919126,6.57,152.17,152.14,6.5709]
[1751838919332,206.02,152.16,152.14,6.5709]
[1751838920331,212.5904,152.16,152.13,6.5715]
[1751838920732,263.4904,152.16,152.13,6.5715]
[1751838922132,6.5708,152.15,152.13,6.5715]
[1751838923234,263.4905,152.16,152.13,6.5715]
[1751838923831,256.92,152.16,152.12,6.5719]
[1751838924324,6.5708,152.15,152.12,6.5719]
[1751838928735,256.92,152.16,152.11,9.08006133]
[1751838929739,205.66,152.15,152.12,9.08006133]
[1751838930733,50.9,152.16,152.14,6.5712]
[1751838930938,256.52,152.16,152.12,9.08006133]
[1751838931333,50.9,152.16,152.12,9.08006133]
[1751838931535,256.5,152.16,152.12,9.08006133]
[1751838931840,256.5,152.16,152.14,6.5712]
[1751838932638,256.46,152.16,152.15,6.5708]
[1751838932837,50.9,152.16,152.15,6.5708]
[1751838933034,256.44,152.16,152.15,6.5708]
[1751838937642,256.26,152.16,152.15,6.5708]
[1751838957064,256.26,152.16,152.15,15.65086133]
[1751838957963,205.36,152.16,152.15,15.65086133]
[1751838959259,205.36,152.16,152.15,6.5708]
[1751838960564,205.36,152.16,152.14,9.08006133]
[1751838960962,205.36,152.16,152.13,11.24642969]
[1751838961263,211.9304,152.16,152.13,17.81792969]
[1751838962261,6.571,152.15,152.13,9.08006133]
[1751838962466,204.5,152.14,152.12,6.572]
[1751838963362,6.5719,152.13,152.11,9.08006133]
[1751838963570,6.5719,152.13,152.11,9.16520123]
[1751838963571,204.44,152.12,152.11,9.16520123]
[1751838964365,204.44,152.12,152.1,15.73800123]
[1751838967568,211.0121,152.12,152.1,9.16520123]
[1751838968569,211.0121,152.12,152.09,15.73840123]
[1751838968968,213.17846836,152.12,152.09,15.73840123]
[1751838969267,8.73886836,152.11,152.08,15.73880123]
[1751838969467,204.22,152.1,152.08,6.5736]
[1751838976374,206.38826496,152.1,152.06,11.33346619]
[1751838977674,212.96136496,152.1,152.07,6.5742]
[1751838979476,203.92,152.09,152.07,6.5742]
[1751838981078,203.92,152.09,152.08,8.74206496]
[1751838982580,203.82,152.11,152.1,6.5729]
[1751838983078,52.66826496,152.13,152.1,6.5729]
[1751838983278,203.76,152.11,152.1,6.5729]
[1751838989584,57.0716,152.13,152.1,6.5729]
[1751838989778,52.66826496,152.13,152.11,6.5725]
[1751838989983,203.5,152.12,152.09,2.16826496]
[1751838990182,203.5,152.12,152.1,6.5727]
[1751838996490,205.66826496,152.12,152.1,6.5727]
[1751839000989,2.16826496,152.12,152.1,6.5727]
[1751839001293,203.08,152.11,152.1,6.5727]
[1751839002699,2.16826496,152.12,152.11,6.5725]
[1751839002900,2.16826496,152.12,152.09,9.16520123]
[1751839003300,205.22826496,152.13,152.1,6.5727]
[1751839003700,202.98,152.12,152.1,6.5727]
[1751839004400,2.16826496,152.13,152.1,6.5727]
[1751839004601,202.98,152.11,152.1,6.5727]
[1751839006502,202.98,152.11,152.1,15.73790123]
[1751839007199,2.16826496,152.13,152.1,15.73790123]
[1751839007504,202.88,152.12,152.1,15.73790123]
[1751839012509,202.88,152.12,152.11,6.5725]
[1751839013708,202.6,152.12,152.11,6.5725]
[1751839017116,202.6,152.12,152.11,15.73770123]
[1751839017318,202.6,152.12,152.11,6.5725]
[1751839019320,202.6,152.12,152.11,9.16520123]
[1751839023025,50.1,152.15,152.11,11.33346619]
[1751839023223,50.1,152.15,152.13,11.33346619]
[1751839023525,49.68,152.17,152.15,6.5705]
[1751839023715,251.9,152.17,152.15,8.73876496]
[1751839025224,251.88,152.17,152.15,8.73876496]
[1751839025626,49.68,152.17,152.16,8.73866496]
[1751839028324,6.5688,152.2,152.17,6.5699]
[1751839028524,202.04,152.18,152.17,8.73816496]
[1751839028721,49.68,152.2,152.17,8.73816496]
[1751839028924,202.02,152.19,152.17,2.16826496]
[1751839029130,202.02,152.19,152.17,11.33346619]
[1751839029330,202.02,152.19,152.17,2.16826496]
[1751839029528,202.02,152.19,152.18,6.5695]
[1751839029724,49.66,152.21,152.18,2.16826496]
[1751839029926,49.66,152.21,152.2,2.16826496]
[1751839030128,49.66,152.21,152.2,8.73686496]
[1751839030522,49.66,152.21,152.2,6.5686]
[1751839030726,49.66,152.21,152.2,8.73686496]
[1751839031240,51.82826496,152.24,152.21,6.5681]
[1751839031427,201.94,152.23,152.21,6.5681]
[1751839031830,201.94,152.23,152.21,8.73636496]
[1751839032328,49.66,152.24,152.21,8.73636496]
[1751839032632,201.86,152.22,152.21,8.73636496]
[1751839032832,201.84,152.22,152.21,6.5681]
[1751839033425,201.84,152.22,152.2,8.73666496]
[1751839033624,201.84,152.22,152.2,6.5684]
[1751839033827,201.84,152.22,152.19,2.16826496]
[1751839034130,204.00826496,152.22,152.16,11.31740123]
[1751839034428,2.16826496,152.21,152.17,2.16826496]
[1751839034733,6.5686,152.2,152.17,8.73786496]
[1751839035639,8.73666496,152.21,152.18,6.5695]
[1751839036530,6.5684,152.21,152.18,6.5695]
[1751839037233,6.5684,152.21,152.18,8.73776496]
[1751839039543,208.4079,152.22,152.19,8.73706496]
[1751839039741,201.84,152.22,152.19,8.73706496]
[1751839041037,2.16826496,152.24,152.19,8.73706496]
[1751839041237,201.5,152.23,152.2,2.16826496]
[1751839041440,201.5,152.23,152.12,54.3874]
[1751839041441,49.66,152.24,152.21,2.16826496]
[1751839041740,251.14,152.24,152.21,8.73636496]
[1751839042339,257.7069,152.24,152.21,8.73636496]
[1751839043733,56.2269,152.24,152.21,8.73636496]
[1751839043932,257.6069,152.24,152.21,8.73636496]
[1751839044242,2.16826496,152.23,152.18,2.16826496]
[1751839044441,2.16826496,152.22,152.18,2.16826496]
[1751839044642,207.9485,152.21,152.18,8.73776496]
[1751839045039,201.38,152.21,152.19,6.5688]
[1751839046338,201.38,152.21,152.2,8.7336017]
[1751839047343,56.2269,152.24,152.2,8.7336017]
[1751839047542,201.26,152.23,152.21,6.5682]
[1751839047744,49.66,152.24,152.21,6.5682]
[1751839047942,201.24,152.23,152.21,6.5682]
[1751839048143,201.24,152.23,152.2,8.7336017]
[1751839048946,201.24,152.23,152.2,6.5686]
[1751839049344,201.24,152.23,152.21,6.5681]
[1751839050543,201.18,152.23,152.21,6.5681]
[1751839051344,49.66,152.24,152.19,3.38197508]
[1751839051540,250.78,152.24,152.21,3.38197508]
[1751839051941,49.66,152.24,152.21,3.38197508]
[1751839052245,250.76,152.24,152.22,6.5675]
[1751839052450,250.76,152.24,152.21,3.38197508]
[1751839053047,576.4816,152.26,152.21,3.38197508]
[1751839053247,201.06,152.25,152.21,3.38197508]
[1751839053643,201.06,152.25,152.22,6.5677]
[1751839054650,207.6266,152.25,152.22,6.5677]
[1751839056055,6.567,152.24,152.21,9.95007508]
[1751839057353,207.6267,152.25,152.22,6.5677]
[1751839059355,6.567,152.24,152.21,9.95007508]
[1751839061456,6.567,152.24,152.22,6.5677]
[1751839061656,207.6266,152.25,152.22,6.5677]
[1751839062856,200.72,152.24,152.22,6.5677]
[1751839063649,207.287,152.24,152.21,9.95007508]
[1751839064351,200.72,152.24,152.21,9.95007508]
[1751839064958,200.72,152.24,152.22,6.5678]
[1751839065557,6.5667,152.25,152.22,6.5678]
[1751839065753,200.58,152.24,152.22,6.5678]
[1751839066052,6.5667,152.25,152.22,6.5678]
[1751839066253,200.58,152.24,152.22,6.5675]
[1751839068858,200.58,152.24,152.23,2.16392488]
[1751839069458,200.58,152.24,152.23,8.73122488]
[1751839069656,576.4815,152.26,152.23,8.73122488]
[1751839069851,200.44,152.25,152.23,8.73122488]
[1751839070454,576.4815,152.26,152.23,8.73122488]
[1751839070652,200.42,152.25,152.23,6.5673]
[1751839071655,206.9866,152.25,152.22,8.73142488]
[1751839073663,206.9866,152.25,152.23,6.5673]
[1751839074464,200.3,152.24,152.23,6.5673]
[1751839075867,200.3,152.24,152.22,8.73152488]
[1751839076270,200.22,152.24,152.22,8.73152488]
[1751839077668,6.5666,152.25,152.22,8.73152488]
[1751839077868,200.18,152.24,152.22,8.73152488]
[1751839078169,6.5666,152.25,152.22,6.5676]
[1751839078468,200.16,152.24,152.22,8.73152488]
[1751839082171,200.06,152.24,152.23,6.5672]
[1751839084671,200.06,152.24,152.2,9.16520123]
[1751839084866,200.06,152.24,152.2,2.16392488]
[1751839085171,200.06,152.24,152.2,11.32912611]
[1751839085865,206.6271,152.24,152.21,6.5679]
[1751839086070,200.06,152.24,152.21,9.16520123]
[1751839086472,200.06,152.24,152.21,15.73310123]
[1751839087569,200.06,152.24,152.22,6.5678]
[1751839088972,200.06,152.24,152.21,15.73320123]
[1751839089168,200.06,152.24,152.21,9.16520123]
[1751839089873,200.06,152.24,152.21,15.73310123]
[1751839091279,200.06,152.24,152.22,9.16520123]
[1751839091575,200.06,152.24,152.22,15.73270123]
[1751839091771,200.06,152.24,152.22,9.16520123]
[1751839091972,200.06,152.24,152.22,11.32912611]
[1751839092272,200.06,152.24,152.23,6.5673]
[1751839093876,48.84,152.26,152.24,6.5669]
[1751839094078,199.68,152.25,152.24,6.5669]
[1751839094674,199.64,152.25,152.24,6.5669]
[1751839094879,199.64,152.25,152.23,15.73230123]
[1751839095077,199.62,152.25,152.23,17.89622611]
[1751839095474,199.62,152.25,152.23,17.91335423]
[1751839095674,199.62,152.25,152.24,6.5669]
[1751839096178,199.62,152.25,152.23,11.34625423]
[1751839096877,48.84,152.26,152.23,11.34625423]
[1751839097077,199.56,152.25,152.23,11.34625423]
[1751839097478,199.56,152.25,152.23,17.91325423]
[1751839098680,199.54,152.25,152.23,17.91325423]
[1751839100782,199.54,152.25,152.24,6.5669]
[1751839101578,199.54,152.25,152.23,17.91335423]
[1751839105480,206.1066,152.25,152.23,17.91335423]
[1751839105681,199.54,152.25,152.23,17.91335423]
[1751839106285,199.54,152.25,152.23,15.74942935]
[1751839106886,51.0039675,152.26,152.23,15.74942935]
[1751839107086,207.9707675,152.25,152.23,9.18232935]
[1751839108086,207.9707675,152.25,152.22,6.5677]
[1751839109891,6.5669,152.24,152.22,6.5677]
[1751839110189,6.5669,152.24,152.21,8.7320675]
[1751839110390,8.73165038,152.24,152.21,6.5681]
[1751839110791,205.8065,152.25,152.2,14.28828412]
[1751839110991,199.24,152.25,152.22,2.16475038]
[1751839112492,205.8066,152.25,152.23,6.5673]
[1751839114294,199.24,152.25,152.23,6.5673]
[1751839115595,55.4062,152.26,152.23,6.5673]
[1751839115788,198.98,152.25,152.23,6.5673]
[1751839116095,205.5465,152.25,152.23,6.5673]
[1751839116395,205.5465,152.25,152.22,6.5676]
[1751839116596,205.5465,152.25,152.21,2.16475038]
[1751839117095,198.9,152.24,152.22,6.5674]
[1751839119093,198.9,152.24,152.23,6.5673]
[1751839125499,198.9,152.24,152.19,12.12353374]
[1751839125701,2.16475038,152.2,152.16,2.16475038]
[1751839125890,198.64,152.19,152.16,2.16475038]
[1751839126199,198.64,152.19,152.18,6.5692]
[1751839126597,201.05139275,152.19,152.18,6.5692]
[1751839128395,198.64,152.19,152.18,6.5692]
[1751839129597,201.04862717,152.19,152.18,6.5692]
[1751839130502,198.52,152.2,152.18,2.16528911]
[1751839130702,198.5,152.21,152.19,2.16528911]
[1751839130901,198.5,152.21,152.2,2.16528911]
[1751839131103,198.5,152.21,152.2,8.73378911]
[1751839131304,200.90786344,152.21,152.2,8.73378911]
[1751839132104,200.90786344,152.21,152.2,6.5685]
[1751839133199,2.40786344,152.21,152.2,8.73378911]
[1751839133497,9.22283905,152.27,152.2,8.73378911]
[1751839133498,48.46,152.27,152.23,6.5673]
[1751839133703,48.46,152.27,152.24,2.16528911]
[1751839133704,2.386358,152.26,152.24,2.16528911]
[1751839133904,198.42,152.26,152.24,2.16528911]
[1751839134101,48.46,152.27,152.25,2.16528911]
[1751839134303,200.78634298,152.26,152.25,2.16528911]
[1751839134499,198.4,152.26,152.25,2.16528911]
[1751839134700,198.4,152.26,152.24,2.16528911]
[1751839135401,246.84,152.27,152.25,2.16528911]
[1751839135800,48.46,152.27,152.25,2.16528911]
[1751839136000,246.82,152.27,152.25,2.16528911]
[1751839136404,246.82,152.27,152.25,8.73148911]
[1751839136807,6.5648,152.29,152.25,6.5662]
[1751839137104,200.68582533,152.28,152.25,6.5662]
[1751839137306,198.3,152.28,152.25,6.5662]
[1751839137706,54.6648,152.29,152.25,6.5662]
[1751839137905,200.68556003,152.28,152.25,6.5662]
[1751839138106,198.28,152.27,152.26,6.566]
[1751839139701,198.28,152.27,152.25,6.5663]
[1751839141408,48.1,152.29,152.26,6.566]
[1751839141607,198.2,152.28,152.26,6.566]
[1751839142412,198.2,152.28,152.23,3.37993549]
[1751839143905,48.1,152.29,152.26,6.5658]
[1751839144105,198.1,152.28,152.26,6.5658]
[1751839144306,198.1,152.28,152.25,3.37993549]
[1751839144504,48.1,152.29,152.26,6.5657]
[1751839144708,198.04,152.28,152.25,3.37993549]
[1751839145809,48.1,152.29,152.26,6.5656]
[1751839146014,198.02,152.28,152.26,6.5656]
[1751839146214,198.0,152.28,152.25,3.37993549]
[1751839146514,246.1,152.29,152.26,6.566]
[1751839146911,246.1,152.29,152.25,3.37993549]
[1751839147114,246.1,152.29,152.27,6.5656]
[1751839147316,48.1,152.29,152.27,3.37993549]
[1751839148408,48.1,152.29,152.28,6.5652]
[1751839148613,3.37993549,152.35,152.27,3.37993549]
[1751839148813,50.4366,152.34,152.29,3.37993549]
[1751839149008,4.5342,152.37,152.29,3.37993549]
[1751839149316,248.43553933,152.36,152.31,3.37993549]
[1751839149511,197.9,152.35,152.33,6.5627]
[1751839149914,197.88,152.35,152.33,6.5627]
[1751839150113,48.08,152.36,152.33,6.5627]
[1751839150416,48.08,152.36,152.34,6.5624]
[1751839150606,245.94,152.36,152.34,6.5624]
[1751839150805,245.94,152.36,152.33,6.5628]
[1751839151208,245.94,152.36,152.31,3.37993549]
[1751839151417,48.08,152.36,152.33,3.37993549]
[1751839152112,48.08,152.36,152.34,6.5623]
[1751839152319,48.08,152.36,152.33,3.37993549]
[1751839153216,48.08,152.36,152.35,6.5622]
[1751839153408,2.2015,152.43,152.35,3.37993549]
[1751839153613,48.08,152.42,152.37,3.37993549]
[1751839153814,197.74,152.41,152.37,3.37993549]
[1751839154214,197.72,152.41,152.37,3.37993549]
[1751839154416,48.08,152.42,152.39,3.37993549]
[1751839154612,245.8,152.42,152.39,3.37993549]
[1751839154813,245.76,152.42,152.4,6.5597]
[1751839155215,48.08,152.42,152.4,6.5597]
[1751839155521,48.08,152.42,152.38,3.37993549]
[1751839156116,48.08,152.42,152.33,6.9502]
[1751839156324,48.08,152.42,152.36,3.37993549]
[1751839156722,3.37993549,152.4,152.34,3.37993549]
[1751839156922,197.62,152.39,152.34,3.37993549]
[1751839158020,197.62,152.39,152.35,6.5619]
[1751839158328,197.62,152.39,152.34,3.37993549]
[1751839158924,197.62,152.39,152.36,6.5615]
[1751839159325,197.62,152.39,152.36,9.94143549]
[1751839160229,204.1804,152.39,152.36,3.37993549]
[1751839161318,197.62,152.39,152.33,4.5869]
[1751839161622,3.37993549,152.37,152.31,3.37993549]
[1751839161826,6.5622,152.35,152.31,9.94353549]
[1751839162028,197.44,152.35,152.29,3.37993549]
[1751839162829,6.5631,152.33,152.26,48.06]
[1751839163028,6.5631,152.33,152.28,3.37993549]
[1751839163531,200.81993549,152.35,152.29,6.5644]
[1751839164321,6.5633,152.33,152.29,6.5644]
[1751839165626,6.5636,152.32,152.29,6.5644]
[1751839167640,6.5639,152.31,152.28,6.565]
[1751839168139,47.76,152.32,152.26,3.37993549]
[1751839168341,54.3238,152.32,152.28,6.5649]
[1751839168742,47.76,152.32,152.28,6.5649]
[1751839169141,6.5639,152.31,152.28,6.5649]
[1751839170240,3.37993549,152.31,152.23,3.37993549]
[1751839170439,197.26,152.3,152.23,3.37993549]
[1751839171546,6.5651,152.29,152.25,6.5661]
[1751839171843,197.26,152.3,152.23,3.37993549]
[1751839172044,6.5655,152.28,152.24,6.5668]
[1751839173146,47.76,152.27,152.21,3.37993549]
[1751839173642,47.76,152.27,152.2,6.9111]
[1751839173842,51.13993549,152.27,152.19,3.37993549]
[1751839174239,51.13993549,152.27,152.15,574.0678]
[1751839174240,3.37993549,152.25,152.17,3.37993549]
[1751839174552,197.16,152.24,152.17,3.37993549]
[1751839175437,203.727,152.24,152.2,6.5684]
[1751839176044,197.16,152.24,152.21,6.5682]
[1751839176750,203.727,152.24,152.2,6.5685]
[1751839184458,6.5673,152.23,152.19,6.5689]
[1751839187858,6.5673,152.23,152.2,6.5686]
[1751839189159,203.7271,152.24,152.21,6.568]
[1751839191062,6.5674,152.23,152.2,6.5685]
[1751839191363,197.16,152.24,152.18,3.37993549]
[1751839191564,6.568,152.22,152.19,6.5689]
[1751839191761,54.368,152.22,152.19,6.5689]
[1751839192258,54.368,152.22,152.18,6.5693]
[1751839192259,6.5682,152.21,152.18,6.5693]
[1751839192563,47.8,152.22,152.16,3.37993549]
[1751839192760,54.368,152.22,152.19,6.5689]
[1751839193462,47.8,152.22,152.16,3.37993549]
[1751839193758,47.8,152.22,152.15,7.0878]
[1751839193964,47.8,152.22,152.17,3.37993549]
[1751839194165,54.3678,152.22,152.19,6.5688]
[1751839194664,54.3678,152.22,152.17,3.37993549]
[1751839194665,54.3678,152.22,152.2,6.5685]
[1751839197864,47.8,152.22,152.2,6.5685]
[1751839199470,54.3678,152.22,152.19,6.5689]
[1751839200270,47.8,152.22,152.2,6.5684]
[1751839200467,4.5714,152.27,152.21,3.37993549]
[1751839200672,47.54,152.27,152.23,3.37993549]
[1751839200867,9.12297902,152.37,152.16,50.91993549]
[1751839200868,2.3723,152.35,152.25,3.37993549]